[Event "European Amateur-ch U1700 2019"]
[Site "Rhodes"]
[Date "2019.04.10"]
[Round "5.6"]
[White "Papadopoulos, Panteleimon"]
[Black "Meremyanina, Kseniya"]
[Result "0-1"]
[ECO "C18"]
[WhiteElo "1384"]
[BlackElo "1577"]
[Annotator "NA"]
[PlyCount "104"]
[EventDate "2019.04.06"]
[EventType "swiss"]
[EventCountry "GRE"]
[SourceTitle "playchess.com"]
[Source "ChessBase"]
[SourceQuality "1"]
[TimeControl "40/5400+30:1800+30"]

1. e4 {[%emt 0:00:00]} e6 {[%emt 0:00:00]} 2. d4 {[%emt 0:00:13]} d5 {[%emt 0:00:00]} 3. Nc3 {[%emt 0:01:18]} Bb4 {[%emt 0:00:10]} 4. e5 {[%emt 0:01:39]} c5 {[%emt 0:00:17]} 5. a3 {[%emt 0:06:33]} Bxc3+ {[%emt 0:00:06]} 6. bxc3 {[%emt 0:01:03]} Ne7 {[%emt 0:01:04]} 7. Qg4 {[%emt 0:01:50]} Qa5 {[%emt 0:00:41]} 8. Bd2 {[%emt 0:06:30]} Qa4 {[%emt 0:06:59]} 9. Rc1 {[%emt 0:10:59]} Nbc6 {[%emt 0:02:13]} 10. Nf3 {[%emt 0:02:55]} O-O {[%emt 0:04:05]} 11. Be2 {[%emt 0:04:16]} Ng6 {[%emt 0:01:53]} 12. h4 {[%emt 0:03:36]} f5 {[%emt 0:03:50]} 13. Qg5 {[%emt 0:05:45]} cxd4 {[%emt 0:05:44]} 14. cxd4 {[%emt 0:04:05]} Nxd4 {[%emt 0:01:08]} 15. Bb4 {[%emt 0:07:23]} Nxf3+ {[%emt 0:00:57]} 16. gxf3 {[%emt 0:01:59]} Rf7 {[%emt 0:04:28]} 17. f4 {[%emt 0:02:52]} a5 {[%emt 0:03:22]} 18. Qd8+ {[%emt 0:02:33]} Nf8 {[%emt 0:00:05]} 19. Bd6 {[%emt 0:04:39]} Qxf4 {[%emt 0:01:04]} 20. Rd1 {[%emt 0:01:02]} b5 {[%emt 0:03:27]} 21. Rg1 {[%emt 0:01:42]} Bb7 {[%emt 0:00:39]} 22. Qg5 {[%emt 0:02:33]} Qxg5 {[%emt 0:00:31]} 23. Rxg5 {[%emt 0:01:06]} Ba6 {[%emt 0:00:39]} 24. Bh5 {[%emt 0:00:51]} Rb7 {[%emt 0:01:02]} 25. Kd2 {[%emt 0:01:10]} Rc8 {[%emt 0:01:37]} 26. Be2 {[%emt 0:01:24]} Nd7 {[%emt 0:01:19]} 27. Rdg1 {[%emt 0:00:29]} Nc5 {[%emt 0:00:13]} 28. f3 {[%emt 0:00:59]} Na4 {[%emt 0:01:22]} 29. h5 {[%emt 0:02:48]} Nc3 {[%emt 0:01:03]} 30. Bd3 {[%emt 0:00:52]} Na4 {[%emt 0:08:29]} 31. h6 {[%emt 0:00:31]} g6 {[%emt 0:00:04]} 32. Be2 {[%emt 0:00:30]} Nb6 {[%emt 0:01:32]} 33. Rb1 {[%emt 0:01:11]} Nc4+ {[%emt 0:02:11]} 34. Bxc4 {[%emt 0:00:24]} Rxc4 {[%emt 0:00:17]} 35. Rbg1 {[%emt 0:01:47]} Rh4 {[%emt 0:01:50]} 36. Re1 {[%emt 0:01:46]} Rxh6 {[%emt 0:00:28]} 37. Rg2 {[%emt 0:00:27]} Rh4 {[%emt 0:01:01]} 38. Re3 {[%emt 0:00:30]} b4 {[%emt 0:01:38]} 39. axb4 {[%emt 0:00:40]} axb4 {[%emt 0:00:02]} 40. Rb3 {[%emt 0:00:00]} Kf7 {[%emt 0:00:00]} 41. Rb2 {[%emt 0:06:05]} h6 {[%emt 0:02:42]} 42. Ra2 {[%emt 0:01:55]} Bc4 {[%emt 0:00:24]} 43. Ra8 {[%emt 0:00:51]} g5 {[%emt 0:00:44]} 44. Rf8+ {[%emt 0:00:45]} Kg7 {[%emt 0:00:02]} 45. Rf6 {[%emt 0:01:10]} d4 {[%emt 0:00:07]} 46. Bf8+ {[%emt 0:01:05]} Kh7 {[%emt 0:00:07]} 47. f4 {[%emt 0:03:29]} g4 {[%emt 0:01:59]} 48. Bc5 {[%emt 0:02:26]} Rh3 {[%emt 0:02:02]} 49. Rf8 {[%emt 0:02:15]} d3 {[%emt 0:01:33]} 50. Rd8 {[%emt 0:01:33]} dxc2 {[%emt 0:00:17]} 51. Kxc2 {[%emt 0:00:49]} Bd5 {[%emt 0:00:03]} 52. Rc8 {[%emt 0:03:55]} Bxg2 {[%emt 0:01:08]} 0-1

[Event "European Amateur-ch U1700 2019"]
[Site "Rhodes"]
[Date "2019.04.10"]
[Round "5.7"]
[White "Makris, Athanasios"]
[Black "Bakhmanov, Farid"]
[Result "0-1"]
[ECO "B01"]
[WhiteElo "1811"]
[BlackElo "1491"]
[Annotator "NA"]
[PlyCount "98"]
[EventDate "2019.04.06"]
[EventType "swiss"]
[EventCountry "GRE"]
[SourceTitle "playchess.com"]
[Source "ChessBase"]
[SourceQuality "1"]
[TimeControl "40/5400+30:1800+30"]

1. e4 {[%emt 0:00:00]} d5 {[%emt 0:00:00]} 2. exd5 {[%emt 0:00:58]} Qxd5 {[%emt 0:00:00]} 3. Nf3 {[%emt 0:00:53]} Bg4 {[%emt 0:00:00]} 4. Nc3 {[%emt 0:02:03]} Qe6+ {[%emt 0:02:44]} 5. Qe2 {[%emt 0:02:11]} Qxe2+ {[%emt 0:00:08]} 6. Bxe2 {[%emt 0:00:16]} Nc6 {[%emt 0:00:37]} 7. O-O {[%emt 0:02:02]} O-O-O {[%emt 0:00:29]} 8. Re1 {[%emt 0:01:39]} Nb4 {[%emt 0:02:38]} 9. Ng5 {[%emt 0:07:46]} Bxe2 {[%emt 0:05:06]} 10. Rxe2 {[%emt 0:03:48]} Nh6 {[%emt 0:00:55]} 11. d3 {[%emt 0:01:01]} e6 {[%emt 0:06:21]} 12. Nf3 {[%emt 0:02:39]} Nf5 {[%emt 0:04:34]} 13. Be3 {[%emt 0:18:08]} Nxe3 {[%emt 0:06:15]} 14. fxe3 {[%emt 0:00:18]} Be7 {[%emt 0:05:57]} 15. Ne5 {[%emt 0:10:54]} Rhf8 {[%emt 0:02:14]} 16. a3 {[%emt 0:01:12]} Nd5 {[%emt 0:01:45]} 17. Nxd5 {[%emt 0:00:51]} exd5 {[%emt 0:01:34]} 18. Nf3 {[%emt 0:05:38]} Rde8 {[%emt 0:02:58]} 19. Rae1 {[%emt 0:04:38]} Bf6 {[%emt 0:06:30]} 20. c3 {[%emt 0:03:18]} Re7 {[%emt 0:09:55]} 21. e4 {[%emt 0:01:26]} dxe4 {[%emt 0:01:06]} 22. Rxe4 {[%emt 0:00:21]} Rfe8 {[%emt 0:00:18]} 23. Rxe7 {[%emt 0:01:07]} Rxe7 {[%emt 0:00:08]} 24. Rxe7 {[%emt 0:00:08]} Bxe7 {[%emt 0:00:06]} 25. Kf2 {[%emt 0:03:01]} f6 {[%emt 0:02:29]} 26. Ke3 {[%emt 0:03:28]} Kd7 {[%emt 0:00:54]} 27. Ke4 {[%emt 0:02:17]} g6 {[%emt 0:05:02]} 28. c4 {[%emt 0:05:13]} a5 {[%emt 0:03:14]} 29. d4 {[%emt 0:02:16]} a4 {[%emt 0:05:30]} 30. g4 {[%emt 0:02:15]} Kc6 {[%emt 0:05:33]} 31. Nd2 {[%emt 0:03:23]} Bd6 {[%emt 0:04:55]} 32. h3 {[%emt 0:00:57]} b6 {[%emt 0:00:09]} 33. Nf3 {[%emt 0:01:05]} Kd7 {[%emt 0:01:06]} 34. g5 {[%emt 0:01:48]} f5+ {[%emt 0:01:34]} 35. Ke3 {[%emt 0:00:53]} c6 {[%emt 0:00:53]} 36. Ne5+ {[%emt 0:01:37]} Bxe5 {[%emt 0:01:07]} 37. dxe5 {[%emt 0:00:08]} Ke6 {[%emt 0:01:57]} 38. Kf4 {[%emt 0:02:55]} Kf7 {[%emt 0:00:19]} 39. Ke3 {[%emt 0:00:37]} Ke7 {[%emt 0:01:04]} 40. Kd4 {[%emt 0:00:00]} Ke6 {[%emt 0:00:00]} 41. h4 {[%emt 0:04:53]} c5+ {[%emt 0:00:16]} 42. Kd3 {[%emt 0:00:35]} Kxe5 {[%emt 0:00:06]} 43. Ke3 {[%emt 0:00:01]} f4+ {[%emt 0:00:26]} 44. Kf3 {[%emt 0:00:52]} Kf5 {[%emt 0:00:06]} 45. Kf2 {[%emt 0:03:01]} Kg4 {[%emt 0:00:05]} 46. Kg2 {[%emt 0:00:58]} Kxh4 {[%emt 0:00:09]} 47. Kf3 {[%emt 0:00:09]} Kxg5 {[%emt 0:00:05]} 48. Kf2 {[%emt 0:00:07]} h5 {[%emt 0:00:19]} 49. Kf3 {[%emt 0:00:20]} Kf5 {[%emt 0:00:04]} 0-1

[Event "European Amateur-ch U1700 2019"]
[Site "Rhodes"]
[Date "2019.04.10"]
[Round "5.8"]
[White "Cebo, Vladimir"]
[Black "Karali, Panagiota"]
[Result "1-0"]
[ECO "A22"]
[WhiteElo "1602"]
[BlackElo "1191"]
[Annotator "NA"]
[PlyCount "67"]
[EventDate "2019.04.06"]
[EventType "swiss"]
[EventCountry "GRE"]
[SourceTitle "playchess.com"]
[Source "ChessBase"]
[SourceQuality "1"]
[TimeControl "40/5400+30:1800+30"]

1. c4 {[%emt 0:00:00]} e5 {[%emt 0:02:23]} 2. Nc3 {[%emt 0:00:00]} Nf6 {[%emt 0:00:39]} 3. e4 {[%emt 0:01:19]} Bc5 {[%emt 0:00:42]} 4. Nf3 {[%emt 0:01:35]} d6 {[%emt 0:01:44]} 5. h3 {[%emt 0:00:25]} O-O {[%emt 0:00:30]} 6. d4 {[%emt 0:01:54]} exd4 {[%emt 0:02:51]} 7. Nxd4 {[%emt 0:05:32]} Re8 {[%emt 0:01:06]} 8. Qd3 {[%emt 0:06:43]} Bb4 {[%emt 0:03:08]} 9. f3 {[%emt 0:04:34]} h6 {[%emt 0:01:16]} 10. Be3 {[%emt 0:02:55]} c6 {[%emt 0:04:40]} 11. Nc2 {[%emt 0:05:16]} Bxc3+ {[%emt 0:04:23]} 12. Qxc3 {[%emt 0:00:21]} d5 {[%emt 0:08:00]} 13. O-O-O {[%emt 0:01:24]} Be6 {[%emt 0:01:57]} 14. cxd5 {[%emt 0:03:46]} cxd5 {[%emt 0:05:45]} 15. Kb1 {[%emt 0:07:56]} Nc6 {[%emt 0:01:41]} 16. g4 {[%emt 0:14:44]} Rc8 {[%emt 0:03:13]} 17. Bd3 {[%emt 0:08:53]} Na5 {[%emt 0:12:35]} 18. Qd2 {[%emt 0:01:43]} Nc4 {[%emt 0:06:23]} 19. Bxc4 {[%emt 0:01:58]} dxc4 {[%emt 0:04:36]} 20. Qc3 {[%emt 0:00:38]} Qc7 {[%emt 0:06:28]} 21. g5 {[%emt 0:00:38]} hxg5 {[%emt 0:04:36]} 22. Bxg5 {[%emt 0:00:04]} Nh5 {[%emt 0:02:11]} 23. Rhg1 {[%emt 0:15:10]} f6 {[%emt 0:00:59]} 24. Bxf6 {[%emt 0:05:26]} Nxf6 {[%emt 0:01:11]} 25. Qxf6 {[%emt 0:00:29]} Bxh3 {[%emt 0:03:04]} 26. Rd5 {[%emt 0:01:35]} Rf8 {[%emt 0:01:31]} 27. Qh4 {[%emt 0:00:24]} Qh2 {[%emt 0:04:56]} 28. Rdg5 {[%emt 0:01:15]} Rf7 {[%emt 0:01:16]} 29. Qh6 {[%emt 0:01:28]} Rcc7 {[%emt 0:02:06]} 30. Nd4 {[%emt 0:01:16]} Qd2 {[%emt 0:02:01]} 31. Ne6 {[%emt 0:00:44]} Bxe6 {[%emt 0:01:23]} 32. Qxe6 {[%emt 0:00:03]} c3 {[%emt 0:01:07]} 33. Rxg7+ {[%emt 0:00:19]} Kh8 {[%emt 0:01:55]} 34. Qh3+ {[%emt 0:00:46]} 1-0

[Event "European Amateur-ch U1700 2019"]
[Site "Rhodes"]
[Date "2019.04.10"]
[Round "5.10"]
[White "Minko, Uliana"]
[Black "Grishina, Zhanna"]
[Result "0-1"]
[ECO "A29"]
[WhiteElo "1315"]
[BlackElo "1482"]
[Annotator "NA"]
[PlyCount "86"]
[EventDate "2019.04.06"]
[EventType "swiss"]
[EventCountry "GRE"]
[SourceTitle "playchess.com"]
[Source "ChessBase"]
[SourceQuality "1"]
[TimeControl "40/5400+30:1800+30"]

1. c4 {[%emt 0:00:00]} e5 {[%emt 0:00:00]} 2. g3 {[%emt 0:00:00]} Nf6 {[%emt 0:00:00]} 3. Nc3 {[%emt 0:00:05]} Nc6 {[%emt 0:00:10]} 4. Bg2 {[%emt 0:00:16]} Bb4 {[%emt 0:00:50]} 5. Nf3 {[%emt 0:00:14]} O-O {[%emt 0:01:44]} 6. O-O {[%emt 0:00:08]} h6 {[%emt 0:02:00]} 7. Ne1 {[%emt 0:00:11]} Re8 {[%emt 0:02:27]} 8. e4 {[%emt 0:00:12]} d6 {[%emt 0:02:00]} 9. Nc2 {[%emt 0:00:40]} Bxc3 {[%emt 0:02:05]} 10. dxc3 {[%emt 0:00:43]} Be6 {[%emt 0:00:36]} 11. b3 {[%emt 0:00:12]} Qd7 {[%emt 0:00:57]} 12. Ne3 {[%emt 0:00:27]} Ne7 {[%emt 0:14:51]} 13. Nd5 {[%emt 0:01:27]} Nexd5 {[%emt 0:00:11]} 14. cxd5 {[%emt 0:00:23]} Bg4 {[%emt 0:00:23]} 15. f3 {[%emt 0:00:34]} Bh3 {[%emt 0:00:08]} 16. Re1 {[%emt 0:00:28]} Bxg2 {[%emt 0:00:12]} 17. Kxg2 {[%emt 0:00:06]} c6 {[%emt 0:00:48]} 18. c4 {[%emt 0:00:14]} cxd5 {[%emt 0:00:48]} 19. cxd5 {[%emt 0:00:20]} Rac8 {[%emt 0:00:17]} 20. Bb2 {[%emt 0:01:37]} Rc7 {[%emt 0:01:06]} 21. Rc1 {[%emt 0:00:13]} Rec8 {[%emt 0:00:06]} 22. Rxc7 {[%emt 0:00:17]} Rxc7 {[%emt 0:00:28]} 23. Re2 {[%emt 0:00:45]} Qc8 {[%emt 0:06:16]} 24. a4 {[%emt 0:01:18]} Nh7 {[%emt 0:00:13]} 25. b4 {[%emt 0:04:31]} Ng5 {[%emt 0:00:51]} 26. g4 {[%emt 0:00:39]} h5 {[%emt 0:00:26]} 27. h3 {[%emt 0:01:18]} Rc4 {[%emt 0:02:59]} 28. Qb3 {[%emt 0:01:52]} hxg4 {[%emt 0:01:43]} 29. hxg4 {[%emt 0:00:27]} g6 {[%emt 0:02:16]} 30. Kg3 {[%emt 0:01:31]} f5 {[%emt 0:07:17]} 31. gxf5 {[%emt 0:05:24]} gxf5 {[%emt 0:00:18]} 32. Rh2 {[%emt 0:01:40]} fxe4 {[%emt 0:03:13]} 33. fxe4 {[%emt 0:00:40]} Nxe4+ {[%emt 0:00:46]} 34. Kg2 {[%emt 0:00:58]} Qg4+ {[%emt 0:15:35]} 35. Kf1 {[%emt 0:08:06]} Ng3+ {[%emt 0:07:09]} 36. Ke1 {[%emt 0:12:12]} Re4+ {[%emt 0:01:57]} 37. Kd2 {[%emt 0:01:16]} Nf1+ {[%emt 0:00:36]} 38. Kc2 {[%emt 0:00:34]} Nxh2 {[%emt 0:03:03]} 39. Bc3 {[%emt 0:00:41]} Re2+ {[%emt 0:01:05]} 40. Bd2 {[%emt 0:00:00]} Nf1 {[%emt 0:00:00]} 41. Qc3 {[%emt 0:03:32]} Nxd2 {[%emt 0:01:12]} 42. Kc1 {[%emt 0:00:54]} Qg1+ {[%emt 0:00:25]} 43. Kc2 {[%emt 0:00:38]} Ne4+ {[%emt 0:00:08]} 0-1

[Event "European Amateur-ch U1700 2019"]
[Site "Rhodes"]
[Date "2019.04.11"]
[Round "6.1"]
[White "Stathatos, Alexandros"]
[Black "Ruzic, Milos"]
[Result "1/2-1/2"]
[ECO "B07"]
[WhiteElo "1184"]
[BlackElo "1674"]
[Annotator "NA"]
[PlyCount "57"]
[EventDate "2019.04.06"]
[EventType "swiss"]
[EventCountry "GRE"]
[SourceTitle "playchess.com"]
[Source "ChessBase"]
[SourceQuality "1"]
[TimeControl "40/5400+30:1800+30"]

1. e4 {[%emt 0:00:00]} d6 {[%emt 0:00:00]} 2. d4 {[%emt 0:00:00]} Nf6 {[%emt 0:00:20]} 3. Nc3 {[%emt 0:00:10]} g6 {[%emt 0:00:25]} 4. Be3 {[%emt 0:00:41]} c6 {[%emt 0:04:53]} 5. Qd2 {[%emt 0:00:31]} Bg7 {[%emt 0:00:11]} 6. f3 {[%emt 0:00:06]} O-O {[%emt 0:00:19]} 7. O-O-O {[%emt 0:00:25]} Re8 {[%emt 0:00:39]} 8. g4 {[%emt 0:00:38]} Qc7 {[%emt 0:04:35]} 9. h4 {[%emt 0:00:52]} h5 {[%emt 0:01:12]} 10. gxh5 {[%emt 0:02:45]} Nxh5 {[%emt 0:00:16]} 11. Nge2 {[%emt 0:00:10]} Nd7 {[%emt 0:00:52]} 12. Rg1 {[%emt 0:09:08]} e5 {[%emt 0:00:53]} 13. d5 {[%emt 0:01:11]} Bf8 {[%emt 0:00:48]} 14. Bh6 {[%emt 0:01:18]} Ng7 {[%emt 0:01:54]} 15. Bxg7 {[%emt 0:01:26]} Bxg7 {[%emt 0:00:42]} 16. h5 {[%emt 0:00:40]} Nf8 {[%emt 0:01:21]} 17. Ng3 {[%emt 0:03:45]} Qb6 {[%emt 0:02:01]} 18. Bc4 {[%emt 0:00:53]} c5 {[%emt 0:01:29]} 19. Rh1 {[%emt 0:04:41]} Qd8 {[%emt 0:00:43]} 20. Bb5 {[%emt 0:04:30]} Bd7 {[%emt 0:01:55]} 21. Bxd7 {[%emt 0:02:05]} Qxd7 {[%emt 0:00:18]} 22. h6 {[%emt 0:00:47]} Bf6 {[%emt 0:00:13]} 23. Rdg1 {[%emt 0:00:56]} Kh7 {[%emt 0:10:27]} 24. Qg2 {[%emt 0:06:49]} a6 {[%emt 0:04:06]} 25. Nh5 {[%emt 0:03:09]} Bh8 {[%emt 0:05:14]} 26. Ng7 {[%emt 0:02:35]} Re7 {[%emt 0:05:13]} 27. Nf5 {[%emt 0:00:57]} Ree8 {[%emt 0:00:28]} 28. Ng7 {[%emt 0:04:55]} Re7 {[%emt 0:00:16]} 29. Nf5 {[%emt 0:00:06]} 1/2-1/2

[Event "European Amateur-ch U1700 2019"]
[Site "Rhodes"]
[Date "2019.04.11"]
[Round "6.2"]
[White "Snokowski, Marcin"]
[Black "Pereverzev, Timofei"]
[Result "1-0"]
[ECO "A07"]
[WhiteElo "1659"]
[BlackElo "1463"]
[Annotator "NA"]
[PlyCount "179"]
[EventDate "2019.04.06"]
[EventType "swiss"]
[EventCountry "GRE"]
[SourceTitle "playchess.com"]
[Source "ChessBase"]
[SourceQuality "1"]
[TimeControl "40/5400+30:1800+30"]

1. Nf3 {[%emt 0:00:00]} d5 {[%emt 0:00:00]} 2. d3 {[%emt 0:00:00]} Nf6 {[%emt 0:00:01]} 3. g3 {[%emt 0:00:50]} c6 {[%emt 0:00:19]} 4. Bg2 {[%emt 0:00:20]} Bg4 {[%emt 0:00:29]} 5. O-O {[%emt 0:01:34]} Nbd7 {[%emt 0:00:32]} 6. Nbd2 {[%emt 0:01:52]} e5 {[%emt 0:00:20]} 7. e4 {[%emt 0:00:31]} Bc5 {[%emt 0:01:17]} 8. h3 {[%emt 0:02:11]} Bxf3 {[%emt 0:01:31]} 9. Qxf3 {[%emt 0:02:26]} d4 {[%emt 0:04:12]} 10. a4 {[%emt 0:08:26]} a5 {[%emt 0:01:50]} 11. Qe2 {[%emt 0:03:30]} Qc7 {[%emt 0:00:56]} 12. f4 {[%emt 0:03:55]} Bd6 {[%emt 0:00:07]} 13. Nc4 {[%emt 0:01:24]} b5 {[%emt 0:01:00]} 14. Nxd6+ {[%emt 0:00:22]} Qxd6 {[%emt 0:00:06]} 15. fxe5 {[%emt 0:03:09]} Nxe5 {[%emt 0:00:07]} 16. Bf4 {[%emt 0:02:54]} Nfd7 {[%emt 0:00:57]} 17. Qh5 {[%emt 0:10:27]} h6 {[%emt 0:02:50]} 18. h4 {[%emt 0:02:36]} g6 {[%emt 0:00:24]} 19. Qe2 {[%emt 0:04:00]} b4 {[%emt 0:00:30]} 20. Bh3 {[%emt 0:01:24]} f6 {[%emt 0:04:45]} 21. Qf2 {[%emt 0:03:02]} g5 {[%emt 0:05:15]} 22. Bxd7+ {[%emt 0:05:47]} Kxd7 {[%emt 0:00:39]} 23. Bxe5 {[%emt 0:00:17]} Qxe5 {[%emt 0:00:04]} 24. Qf5+ {[%emt 0:00:13]} Qxf5 {[%emt 0:04:57]} 25. Rxf5 {[%emt 0:00:16]} Ke6 {[%emt 0:00:58]} 26. Raf1 {[%emt 0:01:59]} Rhf8 {[%emt 0:00:35]} 27. hxg5 {[%emt 0:01:24]} hxg5 {[%emt 0:03:01]} 28. b3 {[%emt 0:00:23]} Ra7 {[%emt 0:00:53]} 29. Rxg5 {[%emt 0:01:55]} Rh8 {[%emt 0:05:08]} 30. Rgf5 {[%emt 0:00:37]} Rh6 {[%emt 0:00:57]} 31. Kg2 {[%emt 0:05:02]} Rah7 {[%emt 0:00:25]} 32. R5f2 {[%emt 0:02:33]} Rg6 {[%emt 0:03:50]} 33. Kf3 {[%emt 0:01:34]} Rh5 {[%emt 0:00:49]} 34. g4 {[%emt 0:04:43]} Rh3+ {[%emt 0:00:53]} 35. Kf4 {[%emt 0:00:08]} Rgh6 {[%emt 0:01:28]} 36. Rf3 {[%emt 0:02:05]} Rxf3+ {[%emt 0:04:47]} 37. Kxf3 {[%emt 0:01:39]} Rh2 {[%emt 0:04:52]} 38. Rf2 {[%emt 0:02:01]} Rh1 {[%emt 0:00:34]} 39. Kg3 {[%emt 0:03:57]} Rc1 {[%emt 0:00:55]} 40. Rh2 {[%emt 0:00:00]} c5 {[%emt 0:00:00]} 41. Rd2 {[%emt 0:17:33]} Re1 {[%emt 0:02:49]} 42. Rf2 {[%emt 0:03:55]} Re3+ {[%emt 0:04:47]} 43. Rf3 {[%emt 0:01:48]} Re2 {[%emt 0:01:37]} 44. Rf2 {[%emt 0:00:16]} Re3+ {[%emt 0:00:17]} 45. Kf4 {[%emt 0:02:01]} Rh3 {[%emt 0:00:38]} 46. Re2 {[%emt 0:03:50]} Rh1 {[%emt 0:00:20]} 47. Kf3 {[%emt 0:02:06]} Rg1 {[%emt 0:00:54]} 48. Rg2 {[%emt 0:00:26]} Rc1 {[%emt 0:01:39]} 49. Rd2 {[%emt 0:00:18]} Ke5 {[%emt 0:00:07]} 50. Rh2 {[%emt 0:01:37]} Rf1+ {[%emt 0:00:28]} 51. Ke2 {[%emt 0:00:49]} Rf4 {[%emt 0:03:22]} 52. Rh5+ {[%emt 0:00:23]} Kd6 {[%emt 0:00:06]} 53. Rd5+ {[%emt 0:02:16]} Kc6 {[%emt 0:00:33]} 54. Rf5 {[%emt 0:00:20]} Rxf5 {[%emt 0:00:13]} 55. exf5 {[%emt 0:02:21]} Kd5 {[%emt 0:00:03]} 56. Kf3 {[%emt 0:00:24]} Ke5 {[%emt 0:00:33]} 57. Kg3 {[%emt 0:00:13]} Kd6 {[%emt 0:00:13]} 58. Kf4 {[%emt 0:00:08]} Ke7 {[%emt 0:00:16]} 59. g5 {[%emt 0:00:18]} fxg5+ {[%emt 0:00:15]} 60. Kxg5 {[%emt 0:00:06]} Kf7 {[%emt 0:00:05]} 61. f6 {[%emt 0:00:38]} Kf8 {[%emt 0:00:06]} 62. Kf5 {[%emt 0:00:45]} Kf7 {[%emt 0:00:07]} 63. Ke5 {[%emt 0:00:05]} Ke8 {[%emt 0:00:03]} 64. Kd6 {[%emt 0:00:11]} Kf7 {[%emt 0:00:05]} 65. Kxc5 {[%emt 0:00:06]} Kxf6 {[%emt 0:00:03]} 66. Kxd4 {[%emt 0:00:12]} Ke6 {[%emt 0:00:04]} 67. Kc5 {[%emt 0:00:06]} Kd7 {[%emt 0:00:04]} 68. Kb5 {[%emt 0:00:15]} Kc7 {[%emt 0:00:04]} 69. Kxa5 {[%emt 0:00:06]} Kc6 {[%emt 0:00:04]} 70. Kxb4 {[%emt 0:00:07]} Kb6 {[%emt 0:00:03]} 71. a5+ {[%emt 0:00:13]} Kc6 {[%emt 0:00:04]} 72. a6 {[%emt 0:00:08]} Kb6 {[%emt 0:00:03]} 73. a7 {[%emt 0:00:11]} Kxa7 {[%emt 0:00:03]} 74. Kc5 {[%emt 0:00:04]} Kb7 {[%emt 0:00:04]} 75. Kd6 {[%emt 0:00:10]} Kb6 {[%emt 0:00:02]} 76. c4 {[%emt 0:00:11]} Kb7 {[%emt 0:00:02]} 77. b4 {[%emt 0:00:24]} Kb6 {[%emt 0:00:03]} 78. Kd7 {[%emt 0:00:10]} Kb7 {[%emt 0:00:05]} 79. c5 {[%emt 0:00:13]} Kb8 {[%emt 0:00:01]} 80. c6 {[%emt 0:00:08]} Ka7 {[%emt 0:00:03]} 81. c7 {[%emt 0:00:05]} Kb6 {[%emt 0:00:02]} 82. c8=Q {[%emt 0:00:22]} Kb5 {[%emt 0:00:01]} 83. Qc5+ {[%emt 0:00:17]} Ka4 {[%emt 0:00:03]} 84. Qa5+ {[%emt 0:00:17]} Kb3 {[%emt 0:00:04]} 85. Qc5 {[%emt 0:00:20]} Ka4 {[%emt 0:00:04]} 86. b5 {[%emt 0:00:14]} Kb3 {[%emt 0:00:07]} 87. b6 {[%emt 0:00:07]} Ka4 {[%emt 0:00:10]} 88. b7 {[%emt 0:00:10]} Kb3 {[%emt 0:00:01]} 89. b8=Q+ {[%emt 0:00:19]} Ka2 {[%emt 0:00:03]} 90. Qca7# {[%emt 0:00:11]} 1-0

[Event "European Amateur-ch U1700 2019"]
[Site "Rhodes"]
[Date "2019.04.11"]
[Round "6.3"]
[White "Bakhmanov, Farid"]
[Black "Kostov, Kiril"]
[Result "0-1"]
[ECO "B41"]
[WhiteElo "1491"]
[BlackElo "1625"]
[Annotator "NA"]
[PlyCount "84"]
[EventDate "2019.04.06"]
[EventType "swiss"]
[EventCountry "GRE"]
[SourceTitle "playchess.com"]
[Source "ChessBase"]
[SourceQuality "1"]
[TimeControl "40/5400+30:1800+30"]

1. e4 {[%emt 0:00:00]} c5 {[%emt 0:00:29]} 2. Nf3 {[%emt 0:00:00]} d6 {[%emt 0:00:50]} 3. d4 {[%emt 0:00:00]} cxd4 {[%emt 0:03:09]} 4. Nxd4 {[%emt 0:00:04]} Nf6 {[%emt 0:00:36]} 5. f3 {[%emt 0:00:12]} e6 {[%emt 0:00:31]} 6. c4 {[%emt 0:00:13]} a6 {[%emt 0:00:08]} 7. Nc3 {[%emt 0:00:27]} Be7 {[%emt 0:00:45]} 8. Be3 {[%emt 0:00:17]} Nbd7 {[%emt 0:01:54]} 9. Be2 {[%emt 0:00:13]} Qc7 {[%emt 0:00:21]} 10. O-O {[%emt 0:00:29]} O-O {[%emt 0:00:33]} 11. Qd2 {[%emt 0:00:21]} b6 {[%emt 0:01:18]} 12. Rfc1 {[%emt 0:00:21]} Bb7 {[%emt 0:00:54]} 13. a4 {[%emt 0:00:50]} Nc5 {[%emt 0:01:27]} 14. Qd1 {[%emt 0:09:12]} Rfd8 {[%emt 0:02:22]} 15. b4 {[%emt 0:00:33]} Ncd7 {[%emt 0:00:21]} 16. Nb3 {[%emt 0:05:25]} Rac8 {[%emt 0:07:56]} 17. a5 {[%emt 0:01:05]} bxa5 {[%emt 0:02:48]} 18. Nxa5 {[%emt 0:00:18]} Ba8 {[%emt 0:01:18]} 19. b5 {[%emt 0:18:51]} Nc5 {[%emt 0:08:58]} 20. Rcb1 {[%emt 0:15:13]} Rb8 {[%emt 0:04:51]} 21. Qf1 {[%emt 0:08:06]} axb5 {[%emt 0:03:20]} 22. cxb5 {[%emt 0:04:48]} d5 {[%emt 0:01:50]} 23. exd5 {[%emt 0:04:21]} exd5 {[%emt 0:01:12]} 24. Qc1 {[%emt 0:12:44]} d4 {[%emt 0:02:13]} 25. Bf4 {[%emt 0:00:13]} Bd6 {[%emt 0:00:38]} 26. Bxd6 {[%emt 0:00:14]} Qxd6 {[%emt 0:01:53]} 27. Nc4 {[%emt 0:02:31]} Qe6 {[%emt 0:04:00]} 28. Ne4 {[%emt 0:06:04]} Ncxe4 {[%emt 0:00:45]} 29. fxe4 {[%emt 0:01:02]} Bxe4 {[%emt 0:03:02]} 30. Ra6 {[%emt 0:01:16]} Qd5 {[%emt 0:01:12]} 31. Nb6 {[%emt 0:03:27]} Rxb6 {[%emt 0:00:47]} 32. Rxb6 {[%emt 0:00:06]} Bxb1 {[%emt 0:00:06]} 33. Qxb1 {[%emt 0:00:11]} d3 {[%emt 0:00:11]} 34. Qxd3 {[%emt 0:03:48]} Qc5+ {[%emt 0:00:08]} 35. Kf1 {[%emt 0:01:02]} Qxb6 {[%emt 0:00:07]} 36. Qf5 {[%emt 0:00:36]} Qe6 {[%emt 0:00:29]} 37. Qc5 {[%emt 0:00:37]} g6 {[%emt 0:01:54]} 38. Bf3 {[%emt 0:01:17]} Ne4 {[%emt 0:02:03]} 39. Qb4 {[%emt 0:01:22]} Nd2+ {[%emt 0:00:33]} 40. Kf2 {[%emt 0:00:00]} Nxf3 {[%emt 0:00:00]} 41. gxf3 {[%emt 0:00:34]} Qb6+ {[%emt 0:01:10]} 42. Kg2 {[%emt 0:00:20]} Rb8 {[%emt 0:00:08]} 0-1